fUST/lending_fUST_20250812
["ID","MTS","AMOUNT","RATE_DAILY","PERIOD"]
[378750297,1755001859919,-1500.0,0.00020468,2]
[378750298,1755001859929,-1500.0,0.00020468,2]
[378750299,1755001859938,-1500.0,0.00020468,2]
[378750300,1755001859947,-1500.0,0.00020468,2]
[378750301,1755001859957,-246.06351529,0.00020468,2]
[378750302,1755001859967,-1500.0,0.00020468,2]
[378750303,1755001859976,-1500.0,0.00020468,2]
[378750304,1755001859986,-360.0,0.00020474,2]
[378750305,1755001859995,-469.97622515,0.00020477,2]
[378750306,1755001860005,-840.44,0.00020477,2]
[378750307,1755001860015,-483.79616963,0.00020477,2]
[378750308,1755001860024,-460.0,0.00020477,2]
[378750309,1755001860034,-561.43,0.00020477,2]
[378750310,1755001860044,-460.0,0.00020477,2]
[378750311,1755001860054,-460.0,0.00020477,2]
[378750312,1755001860064,-527.65,0.00020477,2]
[378750313,1755001860073,-460.0,0.00020477,2]
[378750314,1755001860084,-460.0,0.00020477,2]
[378750315,1755001860097,-460.0,0.00020477,2]
[378750316,1755001860107,-873.53,0.00020477,2]
[378750317,1755001860117,-1212.06,0.00020477,2]
[378750318,1755001860127,-151.0,0.000205,3]
[378750319,1755001860137,-151.0,0.000206,4]
[378750320,1755001860146,-430.826,0.00020601,2]
[378750321,1755001860156,-18502.69577858,0.00020603,2]
[378750322,1755001860166,-151.0,0.00020603,2]
[378750323,1755001860176,-460.0,0.00020612,2]
[378750324,1755001860186,-460.0,0.00020612,2]
[378750325,1755001860196,-1036.58,0.00020612,2]
[378750326,1755001860206,-460.0,0.00020612,2]
[378750327,1755001860215,-2283.43,0.00020612,2]
[378750328,1755001860225,-460.0,0.00020612,2]
[378750329,1755001860235,-460.0,0.00020612,2]
[378750330,1755001860245,-1317.23,0.00020639,2]
[378750331,1755001860256,-470.69,0.00020639,2]
[378750332,1755001860266,-1818.54,0.00020639,2]
[378750333,1755001860278,-460.0,0.00020639,2]
[378750334,1755001860289,-460.0,0.00020639,2]
[378750335,1755001860299,-2926.68,0.00020639,2]
[378750336,1755001860309,-1009.34,0.00020639,2]
[378750337,1755001860319,-485.17,0.00020639,2]
[378750338,1755001860330,-696.18,0.00020639,2]
[378750339,1755001860346,-769.97,0.00020639,2]
[378750340,1755001860357,-556.78,0.00020639,2]
[378750341,1755001860367,-634.63,0.00020639,2]
[378750342,1755001860378,-208.0,0.0002067,2]
[378750343,1755001860389,-3000.0,0.00020712,2]
[378750344,1755001860399,-1284.11466714,0.00020712,2]
[378750345,1755001860410,-2200.0,0.00020722,2]
[378750346,1755001860420,-576.41,0.00020738,2]
[378750347,1755001860430,-492.12,0.00020738,2]
[378750348,1755001860440,-460.0,0.00020738,2]
[378750349,1755001860450,-460.0,0.00020738,2]
[378750350,1755001860460,-554.22,0.00020738,2]
[378750351,1755001860469,-6452.56,0.00020738,2]
[378750352,1755001860479,-1955.18,0.00020738,2]
[378750353,1755001860490,-2570.16,0.00020738,2]
[378750354,1755001860499,-460.0,0.00020739,2]
[378750355,1755001860509,-460.0,0.00020739,2]
[378750356,1755001860519,-460.0,0.00020739,2]
[378750357,1755001860529,-654.54,0.00020739,2]
[378750358,1755001860539,-460.0,0.00020739,2]
[378750359,1755001860549,-460.0,0.00020739,2]
[378750360,1755001860559,-460.0,0.00020739,2]
[378750361,1755001860568,-460.0,0.00020739,2]
[378750362,1755001860578,-460.0,0.00020739,2]
[378750363,1755001860593,-460.0,0.00020739,2]
[378750364,1755001860603,-586.46,0.00020739,2]
[378750365,1755001860613,-798.89,0.00020739,2]
[378750366,1755001860623,-483.78,0.00020739,2]
[378750367,1755001860634,-460.0,0.00020739,2]
[378750368,1755001860644,-1100.68,0.00020739,2]
[378750369,1755001860654,-690.52,0.00020739,2]
[378750370,1755001860663,-1179.26,0.00020739,2]
[378750371,1755001860673,-460.0,0.00020739,2]
[378750372,1755001860682,-648.46,0.00020739,2]
[378750373,1755001860693,-460.0,0.00020739,2]
[378750374,1755001860703,-1091.78,0.00020739,2]
[378750375,1755001860713,-460.0,0.00020739,2]
[378750376,1755001860723,-460.0,0.00020739,2]
[378750377,1755001860733,-460.0,0.00020739,2]
[378750378,1755001860743,-843.83,0.00020739,2]
[378750379,1755001860752,-460.0,0.00020739,2]
[378750380,1755001860762,-1540.86,0.00020739,2]
[378750381,1755001860772,-460.0,0.00020739,2]
[378750382,1755001860782,-1700.15,0.00020739,2]
[378750383,1755001860791,-460.0,0.00020739,2]
[378750384,1755001860801,-722.17,0.00020739,2]
[378750385,1755001860811,-960.3,0.00020739,2]
[378750386,1755001860820,-1988.25,0.00020739,2]
[378750387,1755001860830,-537.4,0.00020739,2]
[378750388,1755001860843,-460.0,0.00020739,2]
[378750389,1755001860853,-2093.8,0.00020739,2]
[378750390,1755001860863,-460.0,0.00020739,2]
[378750391,1755001860872,-726.36,0.00020739,2]
[378750392,1755001860882,-472.46,0.00020739,2]
[378750393,1755001860892,-716.43,0.00020739,2]
[378750394,1755001860902,-660.76,0.00020739,2]
[378750395,1755001860912,-840.44,0.00020751,2]
[378750396,1755001860921,-460.0,0.00020751,2]
[378750397,1755001860931,-561.43,0.00020751,2]
[378750398,1755001860941,-334.65570905,0.00020751,2]
[378750399,1755001860952,-460.0,0.00020751,2]
[378750400,1755001860962,-527.65,0.00020751,2]
[378750401,1755001860972,-460.0,0.00020751,2]
[378750402,1755001860982,-460.0,0.00020751,2]
[378750403,1755001860992,-460.0,0.00020751,2]
[378750404,1755001861002,-873.53,0.00020751,2]
[378750405,1755001861013,-1212.06,0.00020751,2]
[378750406,1755001861023,-800.0,0.00020755,2]
[378750407,1755001861032,-611.02292778,0.00020773,2]
[378750408,1755001861041,-500.0,0.00020773,2]
[378750409,1755001861051,-500.32990521,0.00020773,2]
[378750410,1755001861060,-501.34952174,0.00020773,2]
[378750411,1755001861069,-500.0,0.00020773,2]
[378750412,1755001861079,-500.0,0.00020773,2]
[378750413,1755001861092,-500.83920195,0.00020773,2]
[378750414,1755001861102,-500.0,0.00020773,2]
[378750415,1755001861112,-500.0,0.00020773,2]
[378750416,1755001861122,-500.0,0.00020773,2]
[378750417,1755001861132,-151.0,0.0002078,2]
[378750418,1755001861142,-151.0,0.0002078,2]
[378750419,1755001861151,-151.0,0.0002078,2]
[378750420,1755001861161,-151.0,0.0002078,2]
[378750421,1755001861171,-378.351434,0.0002078,2]
[378750422,1755001861180,-378.351434,0.0002078,2]
[378750423,1755001861190,-301.0,0.00020785,2]
[378750424,1755001861199,-1760.0,0.0002079,2]
[378750425,1755001861210,-1760.0,0.0002079,2]
[378750426,1755001861219,-1760.0,0.0002079,2]
[378750427,1755001861229,-1760.0,0.0002079,2]
[378750428,1755001861239,-1760.0,0.0002079,2]
[378750429,1755001861249,-1760.0,0.0002079,2]
[378750430,1755001861261,-1760.0,0.0002079,2]
[378750431,1755001861271,-1760.0,0.0002079,2]
[378750432,1755001861283,-1760.0,0.0002079,2]
[378750433,1755001861293,-1760.0,0.0002079,2]
[378750434,1755001861305,-1760.0,0.0002079,2]
[378750435,1755001861315,-1760.0,0.0002079,2]
[378750436,1755001861324,-1166.42637111,0.0002079,2]
[378750437,1755001861334,-1760.0,0.0002079,2]
[378750438,1755001861348,-1760.0,0.0002079,2]
[378750439,1755001861358,-1760.0,0.0002079,2]
[378750440,1755001861368,-1760.0,0.0002079,2]
[378750441,1755001861378,-1760.0,0.0002079,2]
[378750442,1755001861387,-1760.0,0.0002079,2]
[378750443,1755001861398,-1760.0,0.0002079,2]
[378750444,1755001861408,-1760.0,0.0002079,2]
[378750445,1755001861417,-415.9458307,0.0002079,2]
[378750446,1755001861427,-155.0,0.0002079,2]
[378750447,1755001861437,-155.0,0.0002079,2]
[378750448,1755001861447,-155.0,0.0002079,2]
[378750449,1755001861456,-155.0,0.0002079,2]
[378750450,1755001861467,-155.0,0.0002079,2]
[378750451,1755001861477,-157.32361995,0.0002079,2]
[378750452,1755001861486,-1760.0,0.0002079,2]
[378750453,1755001861496,-325.0,0.0002079,2]
[378750454,1755001861506,-325.0,0.0002079,2]
[378750455,1755001861515,-325.0,0.0002079,2]
[378750456,1755001861525,-325.0,0.0002079,2]
[378750457,1755001861535,-325.0,0.0002079,2]
[378750458,1755001861545,-325.0,0.0002079,2]
[378750459,1755001861554,-325.0,0.0002079,2]
[378750460,1755001861564,-325.0,0.0002079,2]
[378750461,1755001861574,-325.0,0.0002079,2]
[378750462,1755001861584,-325.0,0.0002079,2]
[378750463,1755001861599,-325.0,0.0002079,2]
[378750464,1755001861609,-325.0,0.0002079,2]
[378750465,1755001861619,-325.0,0.0002079,2]
[378750466,1755001861629,-325.0,0.0002079,2]
[378750467,1755001861639,-325.0,0.0002079,2]
[378750468,1755001861649,-325.0,0.0002079,2]
[378750469,1755001861660,-325.0,0.0002079,2]
[378750470,1755001861670,-325.0,0.0002079,2]
[378750471,1755001861680,-325.0,0.0002079,2]
[378750472,1755001861690,-325.0,0.0002079,2]
[378750473,1755001861700,-325.0,0.0002079,2]
[378750474,1755001861710,-325.0,0.0002079,2]
[378750475,1755001861719,-325.0,0.0002079,2]
[378750476,1755001861729,-325.0,0.0002079,2]
[378750477,1755001861739,-325.0,0.0002079,2]
[378750478,1755001861749,-325.0,0.0002079,2]
[378750479,1755001861759,-325.0,0.0002079,2]
[378750480,1755001861770,-325.0,0.0002079,2]
[378750481,1755001861780,-325.0,0.0002079,2]
[378750482,1755001861790,-325.0,0.0002079,2]
[378750483,1755001861799,-325.0,0.0002079,2]
[378750484,1755001861809,-325.0,0.0002079,2]
[378750485,1755001861818,-325.0,0.0002079,2]
[378750486,1755001861828,-325.0,0.0002079,2]
[378750487,1755001861842,-325.0,0.0002079,2]
[378750488,1755001861851,-325.0,0.0002079,2]
[378750489,1755001861862,-325.0,0.0002079,2]
[378750490,1755001861871,-325.0,0.0002079,2]
[378750491,1755001861881,-325.0,0.0002079,2]
[378750492,1755001861891,-325.0,0.0002079,2]
[378750493,1755001861901,-325.0,0.0002079,2]
[378750494,1755001861912,-325.0,0.0002079,2]
[378750495,1755001861923,-325.0,0.0002079,2]
[378750496,1755001861933,-325.0,0.0002079,2]
[378750497,1755001861943,-325.0,0.0002079,2]
[378750498,1755001861953,-325.0,0.0002079,2]
[378750499,1755001861963,-203.29424896,0.0002079,2]
[378750500,1755001861974,-325.0,0.0002079,2]
[378750501,1755001861983,-325.0,0.0002079,2]
[378750502,1755001861994,-151.0,0.0002079,2]
[378750503,1755001862003,-151.46679,0.0002079,2]
[378750504,1755001862013,-191.671207,0.0002079,2]
[378750505,1755001862023,-151.0,0.0002079,2]
[378750506,1755001862033,-271.217052,0.0002079,2]
[378750507,1755001862044,-271.217052,0.0002079,2]
[378750508,1755001862054,-151.0,0.0002079,2]
[378750509,1755001862064,-151.0,0.0002079,2]
[378750510,1755001862074,-160.0,0.0002079,2]
[378750511,1755001862084,-1760.0,0.0002079,2]
[378750512,1755001862099,-1760.0,0.0002079,2]
[378750513,1755001862110,-948.27446218,0.0002079,2]
[378750514,1755001862427,-2861.60708631,0.00018621,2]
[378750515,1755001862438,-460.0,0.00019369,2]
[378750516,1755001862449,-811.72553782,0.0002079,2]
[378750517,1755001862459,-270.410963,0.0002079,2]
[378750518,1755001862470,-270.410963,0.0002079,2]
[378750519,1755001862481,-1760.0,0.0002079,2]
[378750520,1755001862491,-1760.0,0.0002079,2]
[378750521,1755001862502,-1760.0,0.0002079,2]
[378750522,1755001862513,-215.52532928,0.000208,10]
[378750523,1755001862524,-461.76100612,0.000208,10]
[378750524,1755001862534,-278.14259846,0.000208,10]
[378750525,1755001863121,-460.0,0.00017872,2]
[378750526,1755001863131,-460.0,0.00017999,2]
[378750527,1755001863142,-460.0,0.00017999,2]
[378750528,1755001863152,-460.0,0.00017999,2]
[378750529,1755001863162,-460.0,0.00017999,2]
[378750530,1755001863172,-486.05779555,0.00018011,2]
[378750531,1755001863189,-460.0,0.00018273,2]
[378750532,1755001863205,-460.0,0.00018273,2]
[378750533,1755001863216,-177.02041791,0.00018547,2]
[378750534,1755001863228,-1593.18191724,0.000192,2]
[378750535,1755001864698,-299.78626005,0.000192,2]
[378750536,1755001866806,-460.0,0.00017999,2]
[378750537,1755001866816,-460.0,0.00018273,2]
[378750538,1755001866826,-460.0,0.00018547,2]
[378750539,1755001866835,-1107.03182271,0.000192,2]
[378750540,1755001866848,-250.0,0.00019234,2]
[378750541,1755001866858,-151.0,0.00019234,2]
[378750542,1755001866867,-162.89627548,0.00019234,2]
[378750543,1755001924044,965.0,0.000171,2]
[378750544,1755001930900,-178.93098434,0.00017693,2]
[378750545,1755001933708,-333.24125087,0.00017693,2]
[378750546,1755001935748,-173.36079911,0.00017693,2]
[378750547,1755001938322,-195.57392048,0.00017693,2]
[378750548,1755001942073,-340.87612013,0.00017693,2]
[378750549,1755001944094,-169.91122318,0.00017693,2]
[378750550,1755001947788,-384.37344059,0.00017693,2]
[378750551,1755001949838,-303.93924614,0.00017693,2]
[378750552,1755001952988,-323.80693673,0.00017693,2]
[378750553,1755001955698,-287.52568434,0.00017693,2]
[378750554,1755001957260,363.701883,0.00013699,2]
[378750555,1755001958816,-151.90017713,0.00017693,2]
[378750556,1755001962156,-158.52099033,0.00017693,2]
[378750558,1755001963687,-168.48143441,0.00017693,2]
[378750559,1755001965729,-180.90390237,0.00017693,2]
[378750560,1755001967783,-157.81537883,0.00017693,2]
[378750561,1755001970359,-159.12387987,0.00017693,2]
[378750562,1755001970915,10000.0,0.00016879,2]
[378750563,1755001972442,-244.05858128,0.00017693,2]
[378750564,1755001974936,-263.59378805,0.00017693,2]
[378750565,1755001977523,-288.25799454,0.00017693,2]
[378750566,1755001979213,-301.76915546,0.00017693,2]
[378750567,1755001981231,-173.96688245,0.00017693,2]
[378750568,1755001983342,-60.06822937,0.00017693,2]
[378750569,1755001983368,-198.34500326,0.00017773,2]
[378750570,1755001986948,-248.80747384,0.00017773,2]
[378750571,1755001989095,-222.66882131,0.00017595,2]
[378750572,1755001991538,-463.15945068,0.00017595,2]
[378750573,1755001993421,-163.82,0.00017595,2]
[378750574,1755001996596,-479.44811262,0.00017595,2]
[378750575,1755001999208,-257.25919901,0.00017595,2]
[378750576,1755002001912,-295.40816681,0.00017595,2]
[378750577,1755002005569,-151.50832977,0.00017595,2]
[378750578,1755002007765,-395.6458207,0.00017595,2]
[378750579,1755002009343,-276.77628071,0.00017595,2]
[378750580,1755002013040,-192.68,0.00017595,2]
[378750581,1755002015558,-241.4,0.00017595,2]
[378750582,1755002017964,-331.64639503,0.00017595,2]
[378750583,1755002020114,-168.77167557,0.00017595,2]
[378750584,1755002022498,-183.59764733,0.00017595,2]
[378750585,1755002024181,-232.25592723,0.00017595,2]
[378750586,1755002025742,-250.23779046,0.00017595,2]
[378750587,1755002028382,-257.3319705,0.00017595,2]
[378750588,1755002030301,-290.1493648,0.00017595,2]
[378750589,1755002031861,-146.23504747,0.00017595,2]
[378750590,1755002031884,-212.73734973,0.00017773,2]
[378750591,1755002034331,-185.98539516,0.00017773,2]
[378750592,1755002036444,-172.21101227,0.00017773,2]
[378750593,1755002039672,-234.28565764,0.00017773,2]
[378750594,1755002041126,-300.0,0.00017773,2]
[378750595,1755002044983,-165.71385135,0.00017773,2]
[378750596,1755002048350,-206.90154381,0.00017595,2]
[378750597,1755002050438,-210.58906433,0.00017595,2]
[378750598,1755002053153,-169.7506352,0.00017595,2]
[378750599,1755002057639,856.0081824,0.00017013,2]
[378750600,1755002138750,30281.8226083,0.00030952,120]
[378750601,1755002215507,279.282814,0.00016792,2]
[378750602,1755002236763,5000.0,0.000176,6]
[378750603,1755002252744,5000.0,0.000176,6]
[378750604,1755002267591,24900.0,0.00016811,2]
[378750605,1755002359776,28848.7122364,0.00016777,2]
[378750606,1755002477678,-4991.0,0.00017494,2]
[378750607,1755002505250,2194.83641646,0.00030911,120]
[378750608,1755002528737,169.748389,0.00016979,2]
[378750609,1755002538945,3000.0,0.00030911,60]
[378750610,1755002553251,-666.0,0.00017332,2]
[378750611,1755002567631,4309.63723855,0.00030912,90]
[378750612,1755002648146,5000.0,0.000176,6]
[378750613,1755002648775,180.3946794,0.00016794,2]
[378750614,1755002664752,5000.0,0.000176,6]
[378750615,1755002680933,5000.0,0.000176,6]
[378750616,1755002696691,5000.0,0.000176,6]
[378750617,1755002712949,5000.0,0.000171,2]
[378750618,1755002729538,5000.0,0.000171,2]
[378750619,1755002745550,5000.0,0.000171,2]
[378750620,1755002762565,4621.1277285,0.000171,2]
[378750621,1755002769678,1412.1552826,0.00016811,2]
[378750624,1755002975685,157.0,0.000301,120]
[378750625,1755002978366,159.73834537,0.00016857,2]
[378750626,1755002992564,157.0,0.000171,2]
[378750627,1755003013876,157.0,0.000171,2]
[378750683,1755003032725,-8.9953415,0.00017332,2]
[378750685,1755003032740,-159.73834537,0.00017379,2]
[378750687,1755003032750,-165.95780041,0.00017673,2]
[378750689,1755003032760,-149.50426555,0.00017673,2]
[378750693,1755003032797,-1.08675342,0.00017673,2]
[378750696,1755003032808,-150.59101893,0.00017697,2]
[378750698,1755003032818,-674.92650802,0.00017768,2]
[378750700,1755003032828,-4118.00573908,0.00017773,2]
[378750702,1755003032837,-300.0,0.00017865,2]
[378750704,1755003032847,-886.0,0.00017865,2]
[378750706,1755003032856,-1189.0,0.00017866,2]
[378750708,1755003032866,-460.0,0.00017866,2]
[378750710,1755003032876,-460.0,0.00017866,2]
[378750712,1755003032885,-460.0,0.00017866,2]
[378750714,1755003032896,-460.0,0.00017866,2]
[378750716,1755003032906,-706.79,0.00017866,2]
[378750717,1755003032915,-460.0,0.00017866,2]
[378750719,1755003032924,-167.47857512,0.00017866,2]
[378750721,1755003032934,-1332.01,0.00017866,2]
[378750723,1755003032943,-570.34,0.00017866,2]
[378750726,1755003032953,-460.0,0.00017866,2]
[378750728,1755003032962,-22643.77140188,0.00017866,2]
[378751199,1755003038327,-159.73834536,0.00017379,2]
[378751201,1755003038337,-150.59101893,0.0001772,2]
[378751203,1755003038346,-150.59101893,0.00017744,2]
[378751205,1755003038355,-6102.35871768,0.00017866,2]
[378751207,1755003038368,-353.72246964,0.00017866,2]
[378751211,1755003038387,-359.1962722,0.00017866,2]
[378751430,1755003040580,-188.13788855,0.00017379,2]
[378751432,1755003040590,-150.59101893,0.00017767,2]
[378751434,1755003040600,-460.0,0.00017866,2]
[378751436,1755003040611,-71.88340592,0.00017866,2]
[378751438,1755003040624,-9746.63540172,0.00017866,2]
[378751484,1755003041061,-0.03457042,0.00017866,2]
[378751487,1755003041074,-1595.8,0.00017866,2]
[378751488,1755003041086,-691.47103811,0.00017866,2]
[378751489,1755003041096,-460.0,0.00017867,2]
[378751490,1755003041105,-460.0,0.00017867,2]
[378751491,1755003041115,-460.0,0.00017867,2]
[378751492,1755003041125,-507.49060671,0.00017867,2]
[378751493,1755003041134,-460.0,0.00017867,2]
[378751494,1755003041144,-460.0,0.00017867,2]
[378751495,1755003041153,-162.75695302,0.00017867,2]
[378751496,1755003041165,-297.24304698,0.00017867,2]
[378751497,1755003041175,-460.0,0.00017867,2]
[378751498,1755003041185,-460.0,0.00017867,2]
[378751499,1755003041194,-868.57,0.00017867,2]
[378751500,1755003041204,-70.62775058,0.00017867,2]
[378751705,1755003043469,-887.26,0.00017866,2]
[378751707,1755003043479,-253.92170095,0.00017867,2]
[378751712,1755003043524,-135.45054847,0.00017867,2]
[378751715,1755003043534,-218.36047682,0.00017867,2]
[378751717,1755003043545,-241.63952318,0.00017867,2]
[378751719,1755003043555,-460.0,0.00017867,2]
[378751720,1755003043564,-1060.82,0.00017867,2]
[378751721,1755003043573,-460.0,0.00017867,2]
[378751722,1755003043583,-460.0,0.00017867,2]
[378751724,1755003043592,-460.0,0.00017867,2]
[378751726,1755003043604,-460.0,0.00017867,2]
[378751728,1755003043614,-460.0,0.00017867,2]
[378751730,1755003043624,-1222.42047682,0.00017867,2]
[378751731,1755003043636,-484.80952318,0.00017867,2]
[378751732,1755003043647,-460.0,0.00017867,2]
[378751733,1755003043656,-292.5924177,0.00017867,2]
[378751939,1755003046461,-167.4075823,0.00017867,2]
[378751941,1755003046470,-460.0,0.00017867,2]
[378751943,1755003046479,-460.0,0.00017867,2]
[378751945,1755003046489,-460.0,0.00017867,2]
[378751947,1755003046501,-460.0,0.00017867,2]
[378751949,1755003046510,-641.39,0.00017867,2]
[378751951,1755003046520,-795.92,0.00017867,2]
[378751953,1755003046528,-12.22534903,0.00017867,2]
[378751959,1755003046575,-358.96455211,0.00017867,2]
[378751961,1755003046584,-460.0,0.00017867,2]
[378751963,1755003046594,-311.83544739,0.00017867,2]
[378751965,1755003046607,-148.16455261,0.00017867,2]
[378751968,1755003046618,-460.0,0.00017867,2]
[378751969,1755003046627,-460.0,0.00017867,2]
[378751971,1755003046637,-635.36,0.00017867,2]
[378751974,1755003046648,-460.0,0.00017867,2]
[378751976,1755003046657,-525.35932693,0.00017867,2]
[378751978,1755003046668,-460.0,0.00017867,2]
[378751979,1755003046677,-460.0,0.00017867,2]
[378751981,1755003046689,-173.14330474,0.00017868,2]
[378751983,1755003046698,-500.0,0.00017868,2]
[378751985,1755003046708,-313.38608575,0.00017868,2]
[378751987,1755003046717,-153.94868018,0.00017868,2]
[378751989,1755003046726,-500.0,0.00017868,2]
[378751991,1755003046736,-106.02189499,0.00017868,2]
[378751994,1755003046752,-393.97810501,0.00017868,2]
[378751996,1755003046762,-500.0,0.00017868,2]
[378751998,1755003046771,-500.0,0.00017868,2]
[378752000,1755003046781,-500.0,0.00017868,2]
[378752002,1755003046791,-248.80747384,0.00017868,2]
[378752004,1755003046800,-500.0,0.00017868,2]
[378752006,1755003046809,-500.0,0.00017868,2]
[378752008,1755003046819,-495.54895,0.00017868,2]
[378752010,1755003046828,-500.0,0.00017868,2]
[378752012,1755003046838,-336.76610337,0.00017868,2]
[378752014,1755003046847,-500.0,0.00017868,2]
[378752016,1755003046856,-500.0,0.00017868,2]
[378752018,1755003046866,-202.81609243,0.00017868,2]
[378752019,1755003046876,-425.86132764,0.00017868,2]
[378757336,1755003104921,345.516788,0.00013699,2]
[378759081,1755003181952,8019.4866768,0.00016868,2]
[378759082,1755003306770,222.78,0.000261,120]
[378759083,1755003308971,167.08,0.000261,120]
[378759084,1755003310598,167.09,0.000261,120]
[378759085,1755003312796,207.94,0.000261,120]
[378759086,1755003318032,279.282814,0.00016866,2]
[378759087,1755003438808,2054.99659586,0.00016841,2]
[378759088,1755003438835,4706.84122115,0.00016841,2]
[378759089,1755003438859,10000.0,0.00016841,2]
[378759090,1755003438883,8138.16218299,0.00016841,2]
[378759091,1755003451367,-4978.0,0.00017491,2]
[378759092,1755003555053,1861.83781701,0.00016806,2]
[378759093,1755003555074,1019.82932059,0.00016806,2]
[378759094,1755003654891,-4960.0,0.00017316,2]
[378759095,1755003731726,-168.87316342,0.00017144,2]
[378759096,1755003731748,-165.24,0.00017216,2]
[378759097,1755003731768,-404.9972049,0.00017231,2]
[378759098,1755003731790,-17.88963168,0.00017316,2]
[378759101,1755003830835,5000.0,0.00017001,2]
[378759102,1755003871130,-4976.0,0.00017491,2]
[378759104,1755004079998,-4983.0,0.00017492,2]
[378759105,1755004083113,350.970569,0.00013699,2]
[378759153,1755004232636,-1167.69155971,0.00017317,2]
[378759155,1755004232646,-455.68,0.000175,4]
[378759157,1755004232656,-172.98712297,0.00017668,2]
[378759159,1755004232665,-172.98712296,0.00017712,2]
[378759161,1755004232675,-172.98712296,0.00017756,2]
[378759163,1755004232686,-1200.0,0.00017768,2]
[378759165,1755004232695,-300.0,0.00017768,2]
[378759167,1755004232705,-12500.16847683,0.00017769,2]
[378759169,1755004232715,-875.47457277,0.00017773,2]
[378759171,1755004232726,-460.0,0.00017855,2]
[378759173,1755004232735,-460.0,0.00017855,2]
[378759175,1755004232744,-460.0,0.00017856,2]
[378759177,1755004232754,-460.0,0.00017856,2]
[378759179,1755004232764,-460.0,0.00017856,2]
[378759181,1755004232773,-859.11,0.00017856,2]
[378759183,1755004232783,-1580.63,0.00017856,2]
[378759185,1755004232792,-460.0,0.00017856,2]
[378759187,1755004232805,-924.34,0.00017856,2]
[378759189,1755004232815,-460.0,0.00017856,2]
[378759191,1755004232824,-460.0,0.00017856,2]
[378759193,1755004232834,-893.21,0.00017856,3]
[378759195,1755004232843,-174.13,0.00017857,3]
[378759197,1755004232853,-522.42,0.00017857,3]
[378759199,1755004232862,-500.0,0.0001786,2]
[378759202,1755004232873,-500.0,0.0001786,2]
[378759204,1755004232882,-471.15494887,0.0001786,2]
[378759206,1755004232891,-500.0,0.0001786,2]
[378759208,1755004232901,-500.0,0.0001786,2]
[378759210,1755004232910,-500.0,0.0001786,2]
[378759212,1755004232919,-500.0,0.0001786,2]
[378759214,1755004232928,-500.0,0.0001786,2]
[378759216,1755004232938,-500.0,0.0001786,2]
[378759218,1755004232947,-500.0,0.0001786,2]
[378759220,1755004232957,-500.0,0.0001786,2]
[378759222,1755004232966,-528.214,0.0001786,2]
[378759224,1755004232978,-500.0,0.0001786,2]
[378759225,1755004232987,-460.0,0.0001786,2]
[378759227,1755004232996,-10645.73869614,0.00017861,2]
[378759230,1755004233006,-460.0,0.00017862,2]
[378759232,1755004233016,-1374.66,0.00017862,2]
[378759234,1755004233025,-460.0,0.00017862,2]
[378759236,1755004233035,-460.0,0.00017862,2]
[378759238,1755004233045,-988.56543979,0.00017862,2]
[378759240,1755004233058,-1061.06456021,0.00017862,2]
[378759242,1755004233072,-362.51323865,0.00017862,2]
[378759244,1755004233085,-397.85676135,0.00017862,2]